fUSD/lending_fUSD_20240718
["ID","MTS","AMOUNT","RATE_DAILY","PERIOD"]
[332499098,1721274695091,-590.16,0.00022465,2]
[332499099,1721274695100,-510.5911409,0.00022465,2]
[332499100,1721274695110,-322.03349628,0.00022465,2]
[332499101,1721274695120,-1506.39,0.00022465,2]
[332499102,1721274695129,-500.0,0.00022465,2]
[332499103,1721274695139,-500.0,0.00022465,2]
[332499104,1721274695148,-500.0,0.00022465,2]
[332499105,1721274695158,-500.0,0.00022465,2]
[332499106,1721274695167,-500.0,0.00022465,2]
[332499107,1721274695177,-500.0,0.00022465,2]
[332499108,1721274695186,-500.0,0.00022465,2]
[332499109,1721274695195,-500.0,0.00022465,2]
[332499110,1721274695204,-500.0,0.00022465,2]
[332499111,1721274695213,-500.0,0.00022465,2]
[332499112,1721274695222,-6137.72,0.00022465,2]
[332499113,1721274695232,-569.76198535,0.00022465,2]
[332499114,1721274695242,-500.0,0.00022465,2]
[332499115,1721274695251,-500.0,0.00022465,2]
[332499116,1721274695261,-500.0,0.00022465,2]
[332499117,1721274695271,-251.79941622,0.00022465,2]
[332499118,1721274695281,-1230.23,0.00022465,2]
[332499119,1721274695290,-569.69,0.00022465,2]
[332499120,1721274695299,-500.0,0.00022465,2]
[332499121,1721274695309,-500.0,0.00022465,2]
[332499122,1721274695318,-500.0,0.00022465,2]
[332499123,1721274695327,-500.0,0.00022465,2]
[332499124,1721274695336,-500.0,0.00022465,2]
[332499125,1721274695346,-871.64,0.00022465,2]
[332499126,1721274695355,-500.0,0.00022465,2]
[332499127,1721274695364,-1137.47,0.00022465,2]
[332499128,1721274695373,-500.0,0.00022465,2]
[332499129,1721274695383,-1611.98,0.00022465,2]
[332499130,1721274695392,-776.29,0.00022465,2]
[332499131,1721274695403,-942.22,0.00022465,2]
[332499132,1721274695412,-500.0,0.00022465,2]
[332499133,1721274695422,-1619.85,0.00022465,2]
[332499134,1721274695431,-1424.1,0.00022465,2]
[332499135,1721274695440,-704.81,0.00022465,2]
[332499136,1721274695450,-4112.83,0.00022465,2]
[332499137,1721274695459,-500.0,0.00022465,2]
[332499138,1721274695469,-500.0,0.00022465,2]
[332499139,1721274695478,-13029.79,0.00022465,2]
[332499140,1721274695487,-602.14,0.00022465,2]
[332499141,1721274695497,-3535.32,0.00022465,2]
[332499142,1721274695506,-500.0,0.00022465,2]
[332499143,1721274695515,-1524.99,0.00022465,2]
[332499144,1721274695524,-819.84,0.00022465,2]
[332499145,1721274695533,-858.94,0.00022465,2]
[332499146,1721274695543,-500.0,0.00022465,2]
[332499147,1721274695553,-653.43,0.00022465,2]
[332499148,1721274695562,-233.65093487,0.00022465,2]
[332499149,1721274695572,-1437.11,0.00022465,2]
[332499150,1721274695581,-500.0,0.00022465,2]
[332499151,1721274695591,-880.28,0.00022465,2]
[332499152,1721274695600,-583.393807,0.00022465,2]
[332499153,1721274695609,-500.0,0.00022465,2]
[332499154,1721274695618,-795.39,0.00022465,2]
[332499155,1721274695628,-7597.07,0.00022465,2]
[332499156,1721274695637,-807.77,0.00022465,2]
[332499157,1721274695647,-709.56,0.00022465,2]
[332499158,1721274695660,-500.0,0.00022465,2]
[332499159,1721274695669,-500.0,0.00022465,2]
[332499160,1721274695679,-500.0,0.00022465,2]
[332499161,1721274695688,-500.0,0.00022465,2]
[332499162,1721274695699,-500.0,0.00022465,2]
[332499163,1721274695709,-500.0,0.00022465,2]
[332499164,1721274695718,-1012.82,0.00022465,2]
[332499165,1721274695728,-500.0,0.00022465,2]
[332499166,1721274695737,-500.0,0.00022465,2]
[332499167,1721274695747,-760.09,0.00022465,2]
[332499168,1721274695757,-578.13944982,0.00022465,2]
[332499169,1721274695766,-564.15,0.00022465,2]
[332499170,1721274695776,-1027.53,0.00022465,2]
[332499171,1721274695786,-2007.89,0.00022465,2]
[332499172,1721274695795,-500.0,0.00022465,2]
[332499173,1721274695805,-1589.56,0.00022465,2]
[332499174,1721274695814,-1933.09,0.00022465,2]
[332499175,1721274695824,-500.0,0.00022465,2]
[332499176,1721274695833,-1476.73,0.00022465,2]
[332499177,1721274695842,-507.22,0.00022465,2]
[332499178,1721274695852,-174.88935797,0.00022465,2]
[332499179,1721274695861,-500.0,0.00022465,2]
[332499180,1721274695871,-1457.0,0.00022465,2]
[332499181,1721274695880,-500.0,0.00022465,2]
[332499182,1721274695890,-915.95,0.00022465,2]
[332499183,1721274695899,-713.54,0.00022465,2]
[332499184,1721274695908,-500.0,0.00022465,2]
[332499185,1721274695917,-743.48,0.00022465,2]
[332499186,1721274695926,-1100.58,0.00022465,2]
[332499187,1721274695936,-943.26,0.00022465,2]
[332499188,1721274695945,-500.0,0.00022465,2]
[332499189,1721274695955,-2043.63,0.00022465,2]
[332499190,1721274695964,-500.0,0.00022465,2]
[332499191,1721274695973,-500.0,0.00022465,2]
[332499192,1721274695983,-500.0,0.00022465,2]
[332499193,1721274695991,-500.0,0.00022465,2]
[332499194,1721274696001,-796.96,0.00022465,2]
[332499195,1721274696010,-11070.81,0.00022465,2]
[332499196,1721274696019,-923.61,0.00022465,2]
[332499197,1721274696028,-500.0,0.00022465,2]
[332499198,1721274696037,-515.37,0.00022465,2]
[332499199,1721274696046,-793.83,0.00022465,2]
[332499200,1721274696056,-1164.59,0.00022465,2]
[332499201,1721274696065,-215.77804087,0.00022465,2]
[332499202,1721274696074,-500.0,0.00022465,2]
[332499203,1721274696083,-690.86,0.00022465,2]
[332499204,1721274696092,-867.35,0.00022465,2]
[332499205,1721274696101,-500.0,0.00022465,2]
[332499206,1721274696110,-500.0,0.00022465,2]
[332499207,1721274696119,-500.0,0.00022465,2]
[332499208,1721274696128,-500.0,0.00022465,2]
[332499209,1721274696137,-876.66,0.00022465,2]
[332499210,1721274696148,-525.27,0.00022465,2]
[332499211,1721274696159,-782.82,0.00022465,2]
[332499212,1721274696169,-500.0,0.00022465,2]
[332499213,1721274696180,-4311.1,0.00022465,2]
[332499214,1721274696189,-844.69,0.00022465,2]
[332499215,1721274696198,-746.22,0.00022465,2]
[332499216,1721274696208,-500.0,0.00022465,2]
[332499217,1721274696217,-500.0,0.00022465,2]
[332499218,1721274696226,-510.50301705,0.00022465,2]
[332499219,1721274696236,-500.0,0.00022465,2]
[332499220,1721274696246,-500.0,0.00022465,2]
[332499221,1721274696255,-500.0,0.00022465,2]
[332499222,1721274696265,-395.20754492,0.00022465,2]
[332499223,1721274696274,-500.0,0.00022465,2]
[332499224,1721274696284,-500.0,0.00022465,2]
[332499225,1721274696293,-896.03,0.00022465,2]
[332499226,1721274696460,-1953.52,0.00022465,2]
[332499227,1721274696470,-500.0,0.00022465,2]
[332499228,1721274696480,-1148.21,0.00022465,2]
[332499229,1721274696489,-1765.47,0.00022465,2]
[332499230,1721274696498,-2678.52,0.00022465,2]
[332499231,1721274696507,-534.83,0.00022465,2]
[332499232,1721274696517,-710.81,0.00022465,2]
[332499233,1721274696526,-500.0,0.00022465,2]
[332499234,1721274696535,-500.0,0.00022465,2]
[332499235,1721274696544,-500.0,0.00022465,2]
[332499236,1721274696555,-640.11,0.00022465,2]
[332499237,1721274696565,-500.0,0.00022465,2]
[332499238,1721274696574,-524.55,0.00022465,2]
[332499239,1721274696583,-500.0,0.00022465,2]
[332499240,1721274696593,-1126.55,0.00022465,2]
[332499241,1721274696602,-2083.04,0.00022465,2]
[332499242,1721274696612,-500.0,0.00022465,2]
[332499243,1721274696622,-610.38,0.00022465,2]
[332499244,1721274696631,-500.0,0.00022465,2]
[332499245,1721274696641,-500.0,0.00022465,2]
[332499246,1721274696652,-500.0,0.00022465,2]
[332499247,1721274696663,-500.0,0.00022465,2]
[332499248,1721274696676,-210.70788752,0.00022465,2]
[332499249,1721274696685,-639.99,0.00022465,2]
[332499250,1721274696695,-1255.74,0.00022465,2]
[332499251,1721274696704,-500.0,0.00022465,2]
[332499252,1721274696714,-504.2892725,0.00022465,2]
[332499253,1721274696723,-1191.34,0.00022465,2]
[332499254,1721274696733,-500.0,0.00022465,2]
[332499255,1721274696743,-500.0,0.00022465,2]
[332499256,1721274696753,-856.16,0.00022465,2]
[332499257,1721274696763,-882.9,0.00022465,2]
[332499258,1721274696773,-655.84,0.00022465,2]
[332499259,1721274696783,-1076.39,0.00022465,2]
[332499260,1721274696793,-843.35,0.00022465,2]
[332499261,1721274696803,-596.4,0.00022465,2]
[332499262,1721274696813,-1077.46,0.00022465,2]
[332499263,1721274696822,-500.0,0.00022465,2]
[332499264,1721274696832,-500.0,0.00022465,2]
[332499265,1721274696842,-369.63286268,0.00022465,2]
[332499266,1721274696852,-919.5,0.00022465,2]
[332499267,1721274696862,-612.4905252,0.00022465,2]
[332499268,1721274696871,-507.43777137,0.00022465,2]
[332499269,1721274696880,-4573.55,0.00022465,2]
[332499270,1721274696890,-1855.95,0.00022465,2]
[332499271,1721274696901,-512.14361172,0.00022465,2]
[332499272,1721274696911,-665.16,0.00022465,2]
[332499273,1721274696920,-518.73,0.00022465,2]
[332499274,1721274696930,-612.81,0.00022465,2]
[332499275,1721274696939,-500.0,0.00022465,2]
[332499276,1721274696950,-500.0,0.00022465,2]
[332499277,1721274696960,-835.73,0.00022465,2]
[332499278,1721274696970,-904.21,0.00022465,2]
[332499279,1721274696980,-1642.92,0.00022465,2]
[332499280,1721274696989,-500.0,0.00022465,2]
[332499281,1721274696999,-791.99,0.00022465,2]
[332499282,1721274697008,-500.0,0.00022465,2]
[332499283,1721274697018,-227.81660605,0.00022465,2]
[332499284,1721274697028,-623.41857637,0.00022465,2]
[332499285,1721274697037,-500.0,0.00022465,2]
[332499286,1721274697046,-500.0,0.00022465,2]
[332499287,1721274697055,-977.48,0.00022465,2]
[332499288,1721274697065,-556.07,0.00022465,2]
[332499289,1721274697075,-661.18,0.00022465,2]
[332499290,1721274697084,-693.27,0.00022465,2]
[332499291,1721274697094,-500.0,0.00022465,2]
[332499292,1721274697103,-500.0,0.00022465,2]
[332499293,1721274697113,-500.0,0.00022465,2]
[332499294,1721274697122,-213.79177914,0.00022465,2]
[332499295,1721274697132,-500.0,0.00022465,2]
[332499296,1721274697142,-500.0,0.00022465,2]
[332499297,1721274697152,-2214.59,0.00022465,2]
[332499298,1721274697161,-500.0,0.00022465,2]
[332499299,1721274697171,-500.0,0.00022465,2]
[332499300,1721274697181,-500.0,0.00022465,2]
[332499301,1721274697190,-500.0,0.00022465,2]
[332499302,1721274697199,-1254.33,0.00022465,2]
[332499303,1721274697210,-500.0,0.00022465,2]
[332499304,1721274697219,-500.0,0.00022465,2]
[332499305,1721274697228,-500.0,0.00022465,2]
[332499306,1721274697238,-1064.85,0.00022465,2]
[332499307,1721274697248,-1664.43,0.00022465,2]
[332499308,1721274697258,-712.38,0.00022465,2]
[332499309,1721274697267,-1372.97,0.00022465,2]
[332499310,1721274697277,-1336.88,0.00022465,2]
[332499311,1721274697287,-167.88702525,0.00022465,2]
[332499312,1721274697296,-500.0,0.00022465,2]
[332499313,1721274697306,-507.46537996,0.00022465,2]
[332499314,1721274697316,-631.93,0.00022465,2]
[332499315,1721274697327,-500.0,0.00022465,2]
[332499316,1721274697336,-670.6,0.00022465,2]
[332499317,1721274697346,-1504.98,0.00022465,2]
[332499318,1721274697356,-641.04,0.00022465,2]
[332499319,1721274697365,-595.98,0.00022465,2]
[332499320,1721274697375,-500.0,0.00022465,2]
[332499321,1721274697385,-627.93,0.00022465,2]
[332499322,1721274697395,-627.1,0.00022465,2]
[332499323,1721274697405,-509.33,0.00022465,2]
[332499324,1721274697415,-500.0,0.00022465,2]
[332499325,1721274697425,-815.22,0.00022465,2]
[332499326,1721274697435,-761.09,0.00022465,2]
[332499327,1721274697445,-682.05,0.00022465,2]
[332499328,1721274697455,-500.0,0.00022465,2]
[332499329,1721274697464,-893.7,0.00022465,2]
[332499330,1721274697474,-2157.65,0.00022465,2]
[332499331,1721274697483,-500.0,0.00022465,2]
[332499332,1721274697493,-500.0,0.00022465,2]
[332499333,1721274697503,-807.18,0.00022465,2]
[332499334,1721274697513,-522.29841586,0.00022465,2]
[332499335,1721274697522,-1406.46,0.00022465,2]
[332499336,1721274697532,-500.0,0.00022465,2]
[332499337,1721274697542,-500.0,0.00022465,2]
[332499338,1721274697553,-1812.86,0.00022465,2]
[332499339,1721274697563,-500.0,0.00022465,2]
[332499340,1721274697573,-500.0,0.00022465,2]
[332499341,1721274697583,-500.0,0.00022465,2]
[332499342,1721274697593,-500.0,0.00022465,2]
[332499343,1721274697612,-500.0,0.00022465,2]
[332499344,1721274697630,-1347.52,0.00022465,2]
[332499345,1721274697649,-1418.49,0.00022465,2]
[332499346,1721274697672,-500.0,0.00022465,2]
[332499347,1721274697691,-500.0,0.00022465,2]
[332499348,1721274697711,-674.29,0.00022465,2]
[332499349,1721274697728,-1899.88,0.00022465,2]
[332499350,1721274697743,-500.0,0.00022465,2]
[332499351,1721274697763,-1087.85,0.00022465,2]
[332499352,1721274697783,-684.44,0.00022465,2]
[332499353,1721274697796,-1054.82,0.00022465,2]
[332499354,1721274697813,-830.93,0.00022465,2]
[332499355,1721274697831,-711.99,0.00022465,2]
[332499356,1721274697848,-500.0,0.00022465,2]
[332499357,1721274697861,-500.0,0.00022465,2]
[332499358,1721274697878,-2666.01,0.00022465,2]
[332499359,1721274697895,-500.0,0.00022465,2]
[332499360,1721274697910,-633.27,0.00022465,2]
[332499361,1721274697926,-4087.5,0.00022465,2]
[332499362,1721274697942,-519.85,0.00022465,2]
[332499363,1721274697957,-500.0,0.00022465,2]
[332499364,1721274697972,-1088.17,0.00022465,2]
[332499365,1721274697987,-805.83,0.00022465,2]
[332499366,1721274698002,-710.75,0.00022465,2]
[332499367,1721274698017,-1443.32,0.00022465,2]
[332499368,1721274698032,-2509.77,0.00022465,2]
[332499369,1721274698047,-500.0,0.00022465,2]
[332499370,1721274698064,-500.0,0.00022465,2]
[332499371,1721274698079,-740.77,0.00022465,2]
[332499372,1721274698094,-3322.12,0.00022465,2]
[332499373,1721274698109,-627.24,0.00022465,2]
[332499374,1721274698124,-970.38,0.00022465,2]
[332499375,1721274698139,-500.0,0.00022465,2]
[332499376,1721274698156,-500.0,0.00022465,2]
[332499377,1721274698170,-500.0,0.00022465,2]
[332499378,1721274698185,-500.0,0.00022465,2]
[332499379,1721274698200,-743.17,0.00022465,2]
[332499380,1721274698215,-520.82923358,0.00022465,2]
[332499381,1721274698230,-500.0,0.00022465,2]
[332499382,1721274698246,-1319.4,0.00022465,2]
[332499383,1721274698260,-500.0,0.00022465,2]
[332499384,1721274698275,-500.0,0.00022465,2]
[332499385,1721274698290,-590.37148446,0.00022465,2]
[332499386,1721274698305,-2882.98,0.00022465,2]
[332499387,1721274698320,-500.0,0.00022465,2]
[332499388,1721274698335,-2746.88,0.00022465,2]
[332499389,1721274698350,-1057.3,0.00022465,2]
[332499390,1721274698365,-720.2,0.00022465,2]
[332499391,1721274698379,-1372.91,0.00022465,2]
[332499392,1721274698394,-500.0,0.00022465,2]
[332499393,1721274698410,-500.0,0.00022465,2]
[332499394,1721274698423,-500.0,0.00022465,2]
[332499395,1721274698438,-2899.69,0.00022465,2]
[332499396,1721274698453,-253.02143048,0.00022465,2]
[332499397,1721274698468,-1828.18,0.00022465,2]
[332499398,1721274698483,-500.0,0.00022465,2]
[332499399,1721274698497,-985.68,0.00022465,2]
[332499400,1721274698511,-500.0,0.00022465,2]
[332499401,1721274698525,-500.0,0.00022465,2]
[332499402,1721274698540,-855.13,0.00022465,2]
[332499403,1721274698555,-516.84,0.00022465,2]
[332499404,1721274698570,-544.81,0.00022465,2]
[332499405,1721274698585,-1441.77,0.00022465,2]
[332499406,1721274698601,-500.0,0.00022465,2]
[332499407,1721274698616,-3127.19,0.00022465,2]
[332499408,1721274698630,-506.11,0.00022465,2]
[332499409,1721274698645,-704.01,0.00022465,2]
[332499410,1721274698662,-845.34,0.00022465,2]
[332499411,1721274698677,-1136.26,0.00022465,2]
[332499412,1721274698692,-500.0,0.00022465,2]
[332499413,1721274698707,-500.0,0.00022465,2]
[332499414,1721274698722,-1009.08,0.00022465,2]
[332499415,1721274698741,-1058.36,0.00022465,2]
[332499416,1721274698756,-1029.23,0.00022465,2]
[332499417,1721274698771,-500.0,0.00022465,2]
[332499418,1721274698785,-488.31335162,0.00022465,2]
[332499419,1721274698800,-500.0,0.00022465,2]
[332499420,1721274698815,-500.0,0.00022465,2]
[332499421,1721274698830,-755.43,0.00022465,2]
[332499422,1721274698846,-515.37,0.00022465,2]
[332499423,1721274698861,-4304.52,0.00022465,2]
[332499424,1721274698876,-4685.78,0.00022465,2]
[332499425,1721274698892,-427.45432333,0.00022465,2]
[332499426,1721274698907,-1622.87,0.00022465,2]
[332499427,1721274698922,-500.0,0.00022465,2]
[332499428,1721274698937,-500.0,0.00022465,2]
[332499429,1721274698951,-1960.62,0.00022465,2]
[332499430,1721274698965,-308.67562387,0.00022465,2]
[332499431,1721274698979,-2842.07,0.00022465,2]
[332499432,1721274698994,-1904.52,0.00022465,2]
[332499433,1721274699008,-500.0,0.00022465,2]
[332499434,1721274699022,-855.5,0.00022465,2]
[332499435,1721274699037,-830.44,0.00022465,2]
[332499436,1721274699052,-314.71305945,0.00022465,2]
[332499437,1721274699066,-500.0,0.00022465,2]
[332499438,1721274699082,-1380.63,0.00022465,2]
[332499439,1721274699096,-155.58,0.00022527,2]
[332499440,1721274699112,-168.79438978,0.00022599,2]
[332499441,1721274699127,-450.0,0.000226,2]
[332499442,1721274699142,-335.0,0.000226,2]
[332499443,1721274699158,-200.0,0.000226,2]
[332499444,1721274699172,-151.54082734,0.00022674,2]
[332499445,1721274699187,-152.455554,0.00022695,2]
[332499446,1721274699202,-159.57532592,0.00022737,2]
[332499447,1721274699215,-151.27083308,0.00022738,2]
[332499448,1721274699229,-500.0,0.00022739,2]
[332499449,1721274699244,-500.0,0.00022739,2]
[332499450,1721274699258,-500.0,0.00022739,2]
[332499451,1721274699272,-818.75,0.00022739,2]
[332499452,1721274699286,-540.77,0.00022739,2]
[332499453,1721274699299,-521.74,0.00022739,2]
[332499454,1721274699313,-500.0,0.00022739,2]
[332499455,1721274699327,-566.99,0.00022739,2]
[332499456,1721274699341,-738.9,0.00022739,2]
[332499457,1721274699355,-642.47866625,0.00022739,2]
[332499458,1721274699369,-509.7383982,0.00022739,2]
[332499459,1721274699382,-500.0,0.00022739,2]
[332499460,1721274699610,-712.74,0.00022739,2]
[332499461,1721274699628,-805.54,0.00022739,2]
[332499462,1721274699638,-1011.47,0.00022739,2]
[332499463,1721274699646,-500.0,0.00022739,2]
[332499464,1721274699659,-612.67641301,0.00022739,2]
[332499465,1721274699670,-500.0,0.00022739,2]
[332499466,1721274699679,-286.27836108,0.00022739,2]
[332499467,1721274699688,-500.0,0.00022739,2]
[332499468,1721274699699,-500.0,0.00022739,2]
[332499469,1721274699708,-500.0,0.00022739,2]
[332499470,1721274699718,-255.73926487,0.00022739,2]
[332499471,1721274699727,-500.0,0.00022739,2]
[332499472,1721274699739,-516.23798829,0.00022739,2]
[332499473,1721274699748,-529.89,0.00022739,2]
[332499474,1721274699757,-500.0,0.00022739,2]
[332499475,1721274699767,-500.0,0.00022739,2]
[332499476,1721274699776,-500.0,0.00022739,2]
[332499477,1721274699785,-500.0,0.00022739,2]
[332499478,1721274699794,-515.41045693,0.00022739,2]
[332499479,1721274699803,-500.0,0.00022739,2]
[332499480,1721274699812,-363.89027667,0.00022739,2]
[332499481,1721274699821,-581.44,0.00022739,2]
[332499482,1721274699830,-500.0,0.00022739,2]
[332499483,1721274699839,-500.0,0.00022739,2]
[332499484,1721274699850,-502.39,0.00022739,2]
[332499485,1721274699859,-500.0,0.00022739,2]
[332499486,1721274699868,-500.0,0.00022739,2]
[332499487,1721274699877,-444.00640989,0.00022739,2]
[332499488,1721274699887,-500.0,0.00022739,2]
[332499489,1721274699897,-520.9,0.00022739,2]
[332499490,1721274699908,-500.0,0.00022739,2]
[332499491,1721274699920,-500.0,0.00022739,2]
[332499492,1721274699930,-500.0,0.00022739,2]
[332499493,1721274699940,-1076.23,0.00022739,2]
[332499494,1721274699950,-973.37,0.00022739,2]
[332499495,1721274699961,-500.0,0.00022739,2]
[332499496,1721274699972,-500.0,0.00022739,2]
[332499497,1721274699983,-500.0,0.00022739,2]
[332499498,1721274699992,-363.9739531,0.00022739,2]
[332499499,1721274700003,-636.94512473,0.00022739,2]
[332499500,1721274700013,-500.0,0.00022739,2]
[332499501,1721274700023,-616.41,0.00022739,2]
[332499502,1721274700034,-793.18,0.00022739,2]
[332499503,1721274700044,-500.0,0.00022739,2]
[332499504,1721274700054,-560.96,0.00022739,2]
[332499505,1721274700065,-500.0,0.00022739,2]
[332499506,1721274700074,-500.0,0.00022739,2]
[332499507,1721274700083,-647.77,0.00022739,2]
[332499508,1721274700092,-504.4,0.00022739,2]
[332499509,1721274700101,-500.0,0.00022739,2]
[332499510,1721274700111,-725.9,0.00022739,2]
[332499511,1721274700120,-500.0,0.00022739,2]
[332499512,1721274700129,-500.0,0.00022739,2]
[332499513,1721274700139,-500.0,0.00022739,2]
[332499514,1721274700148,-500.0,0.00022739,2]
[332499515,1721274700158,-1205.78,0.00022739,2]
[332499516,1721274700167,-500.0,0.00022739,2]
[332499517,1721274700176,-500.0,0.00022739,2]
[332499518,1721274700185,-980.23,0.00022739,2]
[332499519,1721274700195,-500.0,0.00022739,2]
[332499520,1721274700204,-500.0,0.00022739,2]
[332499521,1721274700213,-500.0,0.00022739,2]
[332499522,1721274700222,-1674.25,0.00022739,2]
[332499523,1721274700231,-500.0,0.00022739,2]
[332499524,1721274700240,-538.64,0.00022739,2]
[332499525,1721274700249,-163.83277093,0.00022739,2]
[332499526,1721274700258,-539.44,0.00022739,2]
[332499527,1721274700267,-500.0,0.00022739,2]
[332499528,1721274700276,-500.0,0.00022739,2]
[332499529,1721274700285,-500.0,0.00022739,2]
[332499530,1721274700294,-500.0,0.00022739,2]
[332499531,1721274700303,-508.56218634,0.00022739,2]
[332499532,1721274700312,-500.0,0.00022739,2]
[332499533,1721274700321,-500.0,0.00022739,2]
[332499534,1721274700330,-1106.76,0.00022739,2]
[332499535,1721274700339,-622.02,0.00022739,2]
[332499536,1721274700348,-500.0,0.00022739,2]
[332499537,1721274700357,-352.50781162,0.00022739,2]
[332499538,1721274700366,-500.0,0.00022739,2]
[332499539,1721274700375,-626.01,0.00022739,2]
[332499540,1721274700384,-1258.29,0.00022739,2]
[332499541,1721274700393,-500.0,0.00022739,2]
[332499542,1721274700402,-541.75,0.00022739,2]
[332499543,1721274700411,-594.74,0.00022739,2]
[332499544,1721274700420,-1320.7,0.00022739,2]
[332499545,1721274700429,-500.0,0.00022739,2]
[332499546,1721274700438,-500.0,0.00022739,2]
[332499547,1721274700448,-500.0,0.00022739,2]
[332499548,1721274700457,-537.02,0.00022739,2]
[332499549,1721274700466,-500.0,0.00022739,2]
[332499550,1721274700475,-500.0,0.00022739,2]
[332499551,1721274700484,-500.0,0.00022739,2]
[332499552,1721274700493,-500.0,0.00022739,2]
[332499553,1721274700502,-500.0,0.00022739,2]
[332499554,1721274700511,-500.0,0.00022739,2]
[332499555,1721274700520,-500.0,0.00022739,2]
[332499556,1721274700529,-1011.04,0.00022739,2]
[332499557,1721274700539,-500.0,0.00022739,2]
[332499558,1721274700548,-500.0,0.00022739,2]
[332499559,1721274700558,-500.0,0.00022739,2]
[332499560,1721274700568,-500.0,0.00022739,2]
[332499561,1721274700577,-500.0,0.00022739,2]
[332499562,1721274700586,-333.19943109,0.00022739,2]
[332499563,1721274700596,-500.0,0.00022739,2]
[332499564,1721274700607,-500.0,0.00022739,2]
[332499565,1721274700616,-500.0,0.00022739,2]
[332499566,1721274700626,-500.0,0.00022739,2]
[332499567,1721274700635,-500.0,0.00022739,2]
[332499568,1721274700645,-896.75,0.00022739,2]
[332499569,1721274700656,-500.0,0.00022739,2]
[332499570,1721274700666,-1409.64,0.00022739,2]
[332499571,1721274700675,-500.0,0.00022739,2]
[332499572,1721274700685,-500.0,0.00022739,2]
[332499573,1721274700694,-500.0,0.00022739,2]
[332499574,1721274700705,-1095.09,0.00022739,2]
[332499575,1721274700714,-500.0,0.00022739,2]
[332499576,1721274700723,-871.45,0.00022739,2]
[332499577,1721274700733,-500.0,0.00022739,2]
[332499578,1721274700743,-515.35170217,0.00022739,2]
[332499579,1721274700752,-1121.33,0.00022739,2]
[332499580,1721274700761,-1311.63,0.00022739,2]
[332499581,1721274700771,-500.0,0.00022739,2]
[332499582,1721274700780,-500.0,0.00022739,2]
[332499583,1721274700789,-500.0,0.00022739,2]
[332499584,1721274700798,-335.59357751,0.00022739,2]
[332499585,1721274700808,-970.12,0.00022739,2]
[332499586,1721274700817,-513.31435552,0.00022739,2]
[332499587,1721274700826,-500.0,0.00022739,2]
[332499588,1721274700835,-500.0,0.00022739,2]
[332499589,1721274700844,-844.33,0.00022739,2]
[332499590,1721274700854,-587.86,0.00022739,2]
[332499591,1721274700863,-520.32,0.00022739,2]
[332499592,1721274700872,-500.0,0.00022739,2]
[332499593,1721274700881,-500.0,0.00022739,2]
[332499594,1721274700890,-500.0,0.00022739,2]
[332499595,1721274700899,-2191.14,0.00022739,2]
[332499596,1721274700908,-524.03,0.00022739,2]
[332499597,1721274700917,-500.0,0.00022739,2]